{"text_format":"1","workbook":"xlsx","n_sheets":1,"sheets":["Лист1"],"not_rendered":{"charts":0,"images":0,"macros":1,"external_links":0,"defined_names":0,"comments":0,"pivot_tables":0},"unopened":[],"bounds":{"document_bytes":16777216,"sheet_cells":100000,"rows_first":2000,"rows_last":500,"rows_between":2000,"halvings":0,"cell_chars":16384,"cell_head_chars":4096},"cells_cut":0,"cells_raw":0,"read":"whole","date_system":"1900"}

{"sheet":"Лист1","index":0,"n_rows":13,"n_cols":8,"rows_kept":13,"cut":false,"hidden":false,"merged":[]}
["Корневая папка","C:\\Отчеты"]
[]
["Дирекция","Отдел","Группа","Путь к папке",null,2025,2026,2027]
["Коммерция","Продажи",null,{"$f":"_xlfn.TEXTJOIN(\"\\\",TRUE,$B$1,A4:C4)","v":"C:\\Отчеты\\Коммерция\\Продажи"},null,{"$f":"$D4&\"\\\"&F$3","v":"C:\\Отчеты\\Коммерция\\Продажи\\2025"},{"$f":"$D4&\"\\\"&G$3","v":"C:\\Отчеты\\Коммерция\\Продажи\\2026"},"C:\\Отчеты\\Коммерция\\Продажи\\2027"]
["Коммерция","Маркетинг",null,{"$f":"_xlfn.TEXTJOIN(\"\\\",TRUE,$B$1,A5:C5)","v":"C:\\Отчеты\\Коммерция\\Маркетинг"},null,{"$f":"$D5&\"\\\"&F$3","v":"C:\\Отчеты\\Коммерция\\Маркетинг\\2025"},"C:\\Отчеты\\Коммерция\\Маркетинг\\2026","C:\\Отчеты\\Коммерция\\Маркетинг\\2027"]
["Коммерция","Закупки","Внутренние","C:\\Отчеты\\Коммерция\\Закупки\\Внутренние",null,"C:\\Отчеты\\Коммерция\\Закупки\\Внутренние\\2025","C:\\Отчеты\\Коммерция\\Закупки\\Внутренние\\2026","C:\\Отчеты\\Коммерция\\Закупки\\Внутренние\\2027"]
["Коммерция","Закупки","Зарубежные","C:\\Отчеты\\Коммерция\\Закупки\\Зарубежные",null,"C:\\Отчеты\\Коммерция\\Закупки\\Зарубежные\\2025","C:\\Отчеты\\Коммерция\\Закупки\\Зарубежные\\2026","C:\\Отчеты\\Коммерция\\Закупки\\Зарубежные\\2027"]
["Производство","Цех 1",null,"C:\\Отчеты\\Производство\\Цех 1",null,"C:\\Отчеты\\Производство\\Цех 1\\2025","C:\\Отчеты\\Производство\\Цех 1\\2026","C:\\Отчеты\\Производство\\Цех 1\\2027"]
["Производство","Цех 2",null,"C:\\Отчеты\\Производство\\Цех 2",null,"C:\\Отчеты\\Производство\\Цех 2\\2025","C:\\Отчеты\\Производство\\Цех 2\\2026","C:\\Отчеты\\Производство\\Цех 2\\2027"]
["Производство","Мастерские","Электрика","C:\\Отчеты\\Производство\\Мастерские\\Электрика",null,"C:\\Отчеты\\Производство\\Мастерские\\Электрика\\2025","C:\\Отчеты\\Производство\\Мастерские\\Электрика\\2026","C:\\Отчеты\\Производство\\Мастерские\\Электрика\\2027"]
["Производство","Мастерские","Механика","C:\\Отчеты\\Производство\\Мастерские\\Механика",null,"C:\\Отчеты\\Производство\\Мастерские\\Механика\\2025","C:\\Отчеты\\Производство\\Мастерские\\Механика\\2026","C:\\Отчеты\\Производство\\Мастерские\\Механика\\2027"]
["Финансы","Бухгалтерия",null,"C:\\Отчеты\\Финансы\\Бухгалтерия",null,"C:\\Отчеты\\Финансы\\Бухгалтерия\\2025","C:\\Отчеты\\Финансы\\Бухгалтерия\\2026","C:\\Отчеты\\Финансы\\Бухгалтерия\\2027"]
["Финансы","Плановый отдел",null,"C:\\Отчеты\\Финансы\\Плановый отдел",null,"C:\\Отчеты\\Финансы\\Плановый отдел\\2025","C:\\Отчеты\\Финансы\\Плановый отдел\\2026","C:\\Отчеты\\Финансы\\Плановый отдел\\2027"]